[Event "CZE-ch Youth B14 2022"]
[Site "Luhacovice"]
[Date "2022.03.12"]
[Round "1.2"]
[White "Prazak, Daniel"]
[Black "Veverka, Vladimir"]
[Result "1-0"]
[ECO "E92"]
[WhiteElo "2016"]
[BlackElo "1723"]
[Annotator "ChessBase"]
[PlyCount "61"]
[EventDate "2022.03.12"]
[EventType "swiss"]
[EventCountry "CZE"]
[SourceTitle "playchess.com"]
[Source "ChessBase"]
[SourceQuality "1"]
[TimeControl "40/5400+30:1800+30"]

1. Nf3 {[%emt 0:00:03]} Nf6 {[%emt 0:01:18]} 2. d4 {[%emt 0:00:19]} g6 {[%emt 0:01:37]} 3. c4 {[%emt 0:02:56]} Bg7 {[%emt 0:00:48]} 4. Nc3 {[%emt 0:00:56]} O-O {[%emt 0:01:22]} 5. e4 {[%emt 0:00:56]} d6 {[%emt 0:00:10]} 6. Be2 {[%emt 0:00:13]} e5 {[%emt 0:00:17]} 7. dxe5 {[%emt 0:02:03]} dxe5 {[%emt 0:00:21]} 8. Qxd8 {[%emt 0:00:04]} Rxd8 {[%emt 0:00:12]} 9. Bg5 {[%emt 0:00:04]} Re8 {[%emt 0:02:55]} 10. Nd5 {[%emt 0:00:37]} Nxd5 {[%emt 0:01:37]} 11. cxd5 {[%emt 0:00:17]} c6 {[%emt 0:00:42]} 12. Bc4 {[%emt 0:01:13]} Bd7 {[%emt 0:04:43]} 13. O-O {[%emt 0:10:24]} cxd5 {[%emt 0:03:43]} 14. Bxd5 {[%emt 0:00:44]} Bc6 {[%emt 0:03:45]} 15. Rfd1 {[%emt 0:03:28]} Bxd5 {[%emt 0:03:35]} 16. Rxd5 {[%emt 0:01:00]} Nc6 {[%emt 0:03:07]} 17. Rd7 {[%emt 0:09:06]} f6 {[%emt 0:00:38]} 18. Be3 {[%emt 0:00:40]} Re7 {[%emt 0:04:07]} 19. Rad1 {[%emt 0:08:54]} Rxd7 {[%emt 0:05:58]} 20. Rxd7 {[%emt 0:00:08]} b6 {[%emt 0:02:40]} 21. Kf1 {[%emt 0:02:16]} Rd8 {[%emt 0:03:30]} 22. Rc7 {[%emt 0:00:44]} Rd6 {[%emt 0:01:25]} 23. a3 {[%emt 0:06:22]} f5 {[%emt 0:07:16]} 24. Rc8+ {[%emt 0:08:05]} Kf7 {[%emt 0:07:18]} 25. Ng5+ {[%emt 0:07:14]} Ke7 {[%emt 0:02:06]} 26. Nxh7 {[%emt 0:01:03]} Kf7 {[%emt 0:06:49]} 27. Ng5+ {[%emt 0:06:39]} Kf6 {[%emt 0:03:25]} 28. Rc7 {[%emt 0:01:29]} Ne7 {[%emt 0:01:25]} 29. Nh7+ {[%emt 0:01:47]} Kf7 {[%emt 0:00:30]} 30. Bg5 {[%emt 0:00:23]} Re6 {[%emt 0:00:25]} 31. Rxa7 {[%emt 0:01:04]} 1-0

[Event "CZE-ch Youth B14 2022"]
[Site "Luhacovice"]
[Date "2022.03.12"]
[Round "1.4"]
[White "Hozda, Max"]
[Black "Kubin, Tomas Daniel"]
[Result "0-1"]
[ECO "A58"]
[WhiteElo "1901"]
[BlackElo "1666"]
[Annotator "ChessBase"]
[PlyCount "92"]
[EventDate "2022.03.12"]
[EventType "swiss"]
[EventCountry "CZE"]
[SourceTitle "playchess.com"]
[Source "ChessBase"]
[SourceQuality "1"]
[TimeControl "40/5400+30:1800+30"]

1. d4 {[%emt 0:00:14]} Nf6 {[%emt 0:00:10]} 2. c4 {[%emt 0:00:05]} c5 {[%emt 0:00:08]} 3. d5 {[%emt 0:00:05]} b5 {[%emt 0:00:04]} 4. cxb5 {[%emt 0:00:10]} a6 {[%emt 0:00:06]} 5. bxa6 {[%emt 0:00:27]} g6 {[%emt 0:00:17]} 6. Nc3 {[%emt 0:00:11]} Bg7 {[%emt 0:00:13]} 7. e4 {[%emt 0:00:59]} O-O {[%emt 0:00:19]} 8. Nf3 {[%emt 0:00:38]} Qa5 {[%emt 0:00:21]} 9. Bd2 {[%emt 0:02:50]} Bxa6 {[%emt 0:00:28]} 10. Bxa6 {[%emt 0:00:52]} Qxa6 {[%emt 0:00:19]} 11. Qe2 {[%emt 0:00:56]} d6 {[%emt 0:08:37]} 12. Qxa6 {[%emt 0:03:27]} Nxa6 {[%emt 0:00:25]} 13. Ke2 {[%emt 0:05:31]} Rfb8 {[%emt 0:03:51]} 14. Rab1 {[%emt 0:04:16]} Nc7 {[%emt 0:07:03]} 15. Kd3 {[%emt 0:09:35]} Nd7 {[%emt 0:07:00]} 16. a3 {[%emt 0:01:38]} Rb7 {[%emt 0:05:24]} 17. Bg5 {[%emt 0:04:22]} Kf8 {[%emt 0:03:00]} 18. Nd2 {[%emt 0:02:06]} Nb5 {[%emt 0:05:55]} 19. Nxb5 {[%emt 0:01:33]} Rxb5 {[%emt 0:00:06]} 20. Kc2 {[%emt 0:01:49]} Ra4 {[%emt 0:06:11]} 21. Be3 {[%emt 0:03:16]} Ne5 {[%emt 0:03:52]} 22. f3 {[%emt 0:03:31]} Nc4 {[%emt 0:08:10]} 23. Nxc4 {[%emt 0:08:28]} Rxc4+ {[%emt 0:00:07]} 24. Kd3 {[%emt 0:00:24]} Ra4 {[%emt 0:00:42]} 25. Bc1 {[%emt 0:02:15]} Rxa3+ {[%emt 0:02:31]} 26. bxa3 {[%emt 0:07:26]} Rxb1 {[%emt 0:00:07]} 27. Rd1 {[%emt 0:06:08]} Ke8 {[%emt 0:04:21]} 28. Kc2 {[%emt 0:16:41]} Ra1 {[%emt 0:02:31]} 29. Rd3 {[%emt 0:01:48]} c4 {[%emt 0:06:43]} 30. Rd2 {[%emt 0:05:59]} c3 {[%emt 0:18:20]} 31. Rd3 {[%emt 0:02:31]} Ra2+ {[%emt 0:00:32]} 32. Kb3 {[%emt 0:00:29]} Rxg2 {[%emt 0:00:34]} 33. e5 {[%emt 0:03:33]} Bxe5 {[%emt 0:01:58]} 34. f4 {[%emt 0:00:28]} Bf6 {[%emt 0:01:04]} 35. Re3 {[%emt 0:00:32]} Rxh2 {[%emt 0:02:21]} 36. Re4 {[%emt 0:00:27]} Rh1 {[%emt 0:00:54]} 37. Kc2 {[%emt 0:00:33]} Rh2+ {[%emt 0:00:11]} 38. Kb3 {[%emt 0:00:18]} Rh1 {[%emt 0:00:20]} 39. Kc2 {[%emt 0:00:14]} h5 {[%emt 0:02:03]} 40. a4 {[%emt 0:00:52]} h4 {[%emt 0:01:53]} 41. a5 {[%emt 0:31:17]} h3 {[%emt 0:30:43]} 42. a6 {[%emt 0:01:11]} h2 {[%emt 0:00:32]} 43. a7 {[%emt 0:01:20]} Rxc1+ {[%emt 0:00:20]} 44. Kb3 {[%emt 0:00:11]} Ra1 {[%emt 0:01:13]} 45. Ra4 {[%emt 0:00:03]} Rxa4 {[%emt 0:00:17]} 46. Kxa4 {[%emt 0:00:02]} Kf8 {[%emt 0:00:21]} 0-1

[Event "CZE-ch Youth B14 2022"]
[Site "Luhacovice"]
[Date "2022.03.12"]
[Round "1.7"]
[White "Sigut, Ondrej"]
[Black "Setina, Vaclav"]
[Result "1/2-1/2"]
[ECO "B31"]
[WhiteElo "1536"]
[BlackElo "1881"]
[Annotator "NA RC"]
[PlyCount "86"]
[EventDate "2022.03.12"]
[EventType "swiss"]
[EventCountry "CZE"]
[SourceTitle "playchess.com"]
[Source "ChessBase"]
[SourceQuality "1"]
[TimeControl "40/5400+30:1800+30"]

1. e4 {[%emt 0:00:04]} c5 {[%emt 0:00:01]} 2. Nf3 {[%emt 0:00:08]} Nc6 {[%emt 0:00:03]} 3. Bb5 {[%emt 0:00:06]} g6 {[%emt 0:00:17]} 4. O-O {[%emt 0:00:09]} Bg7 {[%emt 0:00:09]} 5. Re1 {[%emt 0:00:08]} Nf6 {[%emt 0:00:16]} 6. e5 {[%emt 0:02:35]} Nd5 {[%emt 0:00:07]} 7. Nc3 {[%emt 0:00:48]} Nc7 {[%emt 0:00:11]} 8. Bxc6 {[%emt 0:00:48]} dxc6 {[%emt 0:00:13]} 9. h3 {[%emt 0:00:39]} O-O {[%emt 0:00:15]} 10. d3 {[%emt 0:00:20]} b6 {[%emt 0:02:19]} 11. a4 {[%emt 0:05:29]} a5 {[%emt 0:00:08]} 12. b3 {[%emt 0:03:04]} Ne6 {[%emt 0:02:16]} 13. Bb2 {[%emt 0:04:06]} Qc7 {[%emt 0:00:30]} 14. Ne4 {[%emt 0:05:39]} Rd8 {[%emt 0:00:25]} 15. Ng3 {[%emt 0:03:03]} Ba6 {[%emt 0:00:30]} 16. Qe2 {[%emt 0:05:31]} b5 {[%emt 0:08:24]} 17. Qe3 {[%emt 0:07:29]} c4 {[%emt 0:05:05]} 18. bxc4 {[%emt 0:03:32]} bxc4 {[%emt 0:07:28]} 19. d4 {[%emt 0:03:50]} c5 {[%emt 0:04:37]} 20. dxc5 {[%emt 0:07:09]} Nxc5 {[%emt 0:07:03]} 21. Ne4 {[%emt 0:04:31]} Nxe4 {[%emt 0:07:58]} 22. Qxe4 {[%emt 0:01:30]} c3 {[%emt 0:00:40]} 23. Ba3 {[%emt 0:00:59]} Bb7 {[%emt 0:01:32]} 24. Qe3 {[%emt 0:04:22]} Bxf3 {[%emt 0:04:40]} 25. gxf3 {[%emt 0:04:05]} Rd5 {[%emt 0:00:51]} 26. e6 {[%emt 0:07:46] [#]} f5 $1 {[%emt 0:05:59]} 27. Rab1 $2 {[%emt 0:03:52]} (27. Rad1 Rad8 28. Rxd5 Rxd5 29. Kg2) 27... Rd2 {[%emt 0:04:12]} 28. Bc5 {[%emt 0:04:29]} Rc8 {[%emt 0:06:38]} 29. Bb6 {[%emt 0:02:05]} Qd6 {[%emt 0:03:31]} 30. Rec1 {[%emt 0:04:41]} Be5 {[%emt 0:07:58]} 31. Rb5 {[%emt 0:04:12]} Bf4 {[%emt 0:02:06]} 32. Qe1 {[%emt 0:01:07]} Qc6 {[%emt 0:11:12]} 33. Rc5 {[%emt 0:02:42]} Qa8 {[%emt 0:07:08]} 34. Rxc8+ {[%emt 0:01:57]} Qxc8 {[%emt 0:00:01]} 35. Be3 {[%emt 0:00:40]} Bxe3 {[%emt 0:02:26]} 36. Qxe3 {[%emt 0:00:03]} Rd6 {[%emt 0:00:31]} 37. Re1 {[%emt 0:02:29]} Qc4 {[%emt 0:00:14]} 38. Qa7 {[%emt 0:01:22]} Rxe6 {[%emt 0:01:02]} 39. Rxe6 {[%emt 0:00:49]} Qxe6 {[%emt 0:00:01]} 40. Qxa5 {[%emt 0:00:30]} Qe1+ {[%emt 0:00:44]} 41. Kg2 {[%emt 0:30:09]} Qd2 {[%emt 0:30:19]} 42. Qa8+ {[%emt 0:00:36]} Kf7 {[%emt 0:00:00]} 43. a5 {[%emt 0:00:00]} Qg5+ $11 {[%emt 0:00:00]} 1/2-1/2

[Event "CZE-ch Youth B14 2022"]
[Site "Luhacovice"]
[Date "2022.03.12"]
[Round "1.8"]
[White "Fizer, Marek"]
[Black "Davidek, Zdenek"]
[Result "1-0"]
[ECO "B19"]
[WhiteElo "1876"]
[BlackElo "1570"]
[Annotator "NA"]
[PlyCount "91"]
[EventDate "2022.03.12"]
[EventType "swiss"]
[EventCountry "CZE"]
[SourceTitle "playchess.com"]
[Source "ChessBase"]
[SourceQuality "1"]
[TimeControl "40/5400+30:1800+30"]

1. e4 {[%emt 0:00:03]} c6 {[%emt 0:00:27]} 2. d4 {[%emt 0:00:08]} d5 {[%emt 0:00:06]} 3. Nd2 {[%emt 0:01:04]} dxe4 {[%emt 0:00:41]} 4. Nxe4 {[%emt 0:00:02]} Bf5 {[%emt 0:00:34]} 5. Ng3 {[%emt 0:00:07]} Bg6 {[%emt 0:00:06]} 6. h4 {[%emt 0:00:17]} h6 {[%emt 0:00:40]} 7. Nf3 {[%emt 0:00:09]} Nd7 {[%emt 0:00:10]} 8. h5 {[%emt 0:00:17]} Bh7 {[%emt 0:00:11]} 9. Bd3 {[%emt 0:00:23]} Bxd3 {[%emt 0:00:08]} 10. Qxd3 {[%emt 0:00:05]} e6 {[%emt 0:00:11]} 11. Bd2 {[%emt 0:00:59]} Ngf6 {[%emt 0:00:21]} 12. O-O-O {[%emt 0:00:44]} Be7 {[%emt 0:02:37]} 13. Ne4 {[%emt 0:00:46]} Nxe4 {[%emt 0:02:36]} 14. Qxe4 {[%emt 0:01:01]} Nf6 {[%emt 0:00:22]} 15. Qe2 {[%emt 0:00:09]} Qd5 {[%emt 0:01:22]} 16. c4 {[%emt 0:02:00]} Qe4 {[%emt 0:00:26]} 17. Rde1 {[%emt 0:02:33]} Qxe2 {[%emt 0:04:05]} 18. Rxe2 {[%emt 0:00:08]} O-O {[%emt 0:01:30]} 19. Ne5 {[%emt 0:02:32]} Rfd8 {[%emt 0:09:32]} 20. Bc3 {[%emt 0:04:18]} Nd7 {[%emt 0:09:56]} 21. f4 {[%emt 0:09:48]} Nxe5 {[%emt 0:05:59]} 22. dxe5 {[%emt 0:00:37]} Rd7 {[%emt 0:07:53]} 23. Rd1 $11 {[%emt 0:01:59]} Rxd1+ {[%emt 0:12:20]} 24. Kxd1 {[%emt 0:00:03]} Rd8+ {[%emt 0:00:06]} 25. Kc2 {[%emt 0:00:07]} g6 {[%emt 0:06:36]} 26. g4 {[%emt 0:00:55]} Kg7 {[%emt 0:02:51]} 27. f5 {[%emt 0:04:28]} gxf5 {[%emt 0:08:57]} 28. gxf5 {[%emt 0:00:12]} Bg5 {[%emt 0:00:16]} 29. f6+ {[%emt 0:01:58]} Kf8 {[%emt 0:03:52]} 30. a4 {[%emt 0:09:48]} Ke8 {[%emt 0:05:34]} 31. b4 {[%emt 0:04:12]} Kf8 {[%emt 0:07:36]} 32. Re4 {[%emt 0:05:42]} Kg8 {[%emt 0:04:22]} 33. Bd4 {[%emt 0:01:20]} a6 {[%emt 0:01:09]} 34. Rg4 {[%emt 0:02:30]} Kh7 {[%emt 0:00:26]} 35. Kc3 {[%emt 0:00:22]} b5 {[%emt 0:02:28]} 36. axb5 {[%emt 0:00:59]} axb5 {[%emt 0:00:06]} 37. Bb6 {[%emt 0:00:14]} Rb8 {[%emt 0:01:46]} 38. c5 {[%emt 0:00:40]} Rb7 {[%emt 0:00:31]} 39. Rd4 {[%emt 0:00:33]} Be3 {[%emt 0:00:21]} 40. Rd6 {[%emt 0:00:25]} Bf4 {[%emt 0:00:13]} 41. Kd4 {[%emt 0:30:53]} Bd2 {[%emt 0:30:37]} 42. Rxc6 {[%emt 0:00:27]} Bxb4 {[%emt 0:00:00]} 43. Rc7 {[%emt 0:00:00]} Rxc7 {[%emt 0:00:00]} 44. Bxc7 {[%emt 0:00:00]} Be1 {[%emt 0:00:00]} 45. c6 {[%emt 0:00:00]} Kg8 {[%emt 0:00:00]} 46. Bd6 1-0

[Event "CZE-ch Youth B14 2022"]
[Site "Luhacovice"]
[Date "2022.03.12"]
[Round "1.9"]
[White "Mrazek, Adam"]
[Black "Soucek, Jan"]
[Result "0-1"]
[ECO "D17"]
[WhiteElo "1582"]
[BlackElo "1849"]
[Annotator "NA RC"]
[PlyCount "114"]
[EventDate "2022.03.12"]
[EventType "swiss"]
[EventCountry "CZE"]
[SourceTitle "playchess.com"]
[Source "ChessBase"]
[SourceQuality "1"]
[TimeControl "40/5400+30:1800+30"]

1. d4 {[%emt 0:00:02]} d5 {[%emt 0:00:21]} 2. c4 {[%emt 0:00:22]} c6 {[%emt 0:00:16]} 3. Nc3 {[%emt 0:00:35]} Nf6 {[%emt 0:00:09]} 4. Nf3 {[%emt 0:01:05]} dxc4 {[%emt 0:00:18]} 5. a4 {[%emt 0:04:06]} Bf5 {[%emt 0:00:19]} 6. Bg5 {[%emt 0:03:58]} Nd5 {[%emt 0:11:05]} 7. e4 {[%emt 0:08:56]} Nxc3 {[%emt 0:00:41]} 8. bxc3 {[%emt 0:00:17]} Bxe4 {[%emt 0:00:47]} 9. Bxc4 {[%emt 0:02:20]} Bd5 {[%emt 0:26:50]} 10. Bd3 {[%emt 0:20:38]} g6 {[%emt 0:00:23]} 11. O-O {[%emt 0:01:56]} Bg7 {[%emt 0:00:19]} 12. Re1 {[%emt 0:01:11]} f6 {[%emt 0:00:41]} 13. Bf4 {[%emt 0:01:28]} O-O {[%emt 0:01:00]} 14. Qe2 {[%emt 0:04:37]} Re8 {[%emt 0:14:35]} 15. Rab1 {[%emt 0:12:30]} b6 {[%emt 0:07:01]} 16. Bc4 {[%emt 0:25:10]} e6 {[%emt 0:12:45]} 17. Bg3 {[%emt 0:06:55]} Nd7 {[%emt 0:08:43]} 18. Bxd5 {[%emt 0:00:17]} cxd5 {[%emt 0:00:50]} 19. c4 {[%emt 0:01:13]} Nf8 {[%emt 0:01:07]} 20. cxd5 {[%emt 0:01:02]} Qxd5 {[%emt 0:00:51]} 21. Qb5 {[%emt 0:00:43]} Kf7 {[%emt 0:07:08]} 22. Rbc1 {[%emt 0:01:12]} Rec8 {[%emt 0:01:49]} 23. Qa6 {[%emt 0:00:45]} Qd7 {[%emt 0:00:54]} 24. Qb5 {[%emt 0:00:33]} Bh6 {[%emt 0:00:33]} 25. Rxc8 {[%emt 0:00:37]} Rxc8 {[%emt 0:00:08]} 26. Qxd7+ {[%emt 0:00:31]} (26. h4 $17) 26... Nxd7 {[%emt 0:00:01]} 27. h3 {[%emt 0:00:28]} Rc4 {[%emt 0:00:36]} 28. Ra1 {[%emt 0:00:28]} Bc1 {[%emt 0:01:32]} 29. Ra2 {[%emt 0:00:30]} a6 {[%emt 0:01:28]} 30. Kf1 {[%emt 0:00:29]} b5 {[%emt 0:00:45]} 31. axb5 {[%emt 0:00:23]} axb5 {[%emt 0:00:01]} 32. Bd6 {[%emt 0:00:25]} (32. Ra7 $15 Ke7 33. Ke2) 32... Nb6 {[%emt 0:01:20]} 33. Ra7+ {[%emt 0:00:38]} Ke8 {[%emt 0:00:12]} 34. Re7+ {[%emt 0:00:35]} Kd8 {[%emt 0:00:09]} 35. Rxe6 {[%emt 0:00:29]} Kd7 {[%emt 0:01:12]} 36. Rxf6 {[%emt 0:00:13]} Kc8 {[%emt 0:00:24]} 37. Bc5 {[%emt 0:00:35]} Nd7 {[%emt 0:00:19]} 38. Rf7 {[%emt 0:00:41]} Nxc5 {[%emt 0:00:11]} 39. dxc5 {[%emt 0:00:08]} b4 {[%emt 0:00:22]} 40. Ne5 {[%emt 0:00:45]} ({Not} 40. Rxh7 $2 b3 41. Rh8+ Kb7 42. Rh7+ Ka6 $19) 40... Rxc5 {[%emt 0:00:25]} 41. Nd3 {[%emt 0:30:33]} Rc4 {[%emt 0:31:46]} 42. Rxh7 {[%emt 0:00:00]} b3 {[%emt 0:00:00]} 43. Rg7 {[%emt 0:00:00]} Rc2 {[%emt 0:00:00]} 44. Rxg6 {[%emt 0:00:00]} Kc7 {[%emt 0:00:00]} 45. Rg4 {[%emt 0:00:00]} Kc6 {[%emt 0:00:00]} 46. Nb4+ {[%emt 0:00:00]} Kb5 $1 {[%emt 0:00:00]} 47. Nxc2 $4 {[%emt 0:00:19]} (47. Nd3 $11 Ba3 48. h4) 47... bxc2 {[%emt 0:00:00]} 48. Rg8 {[%emt 0:03:17]} Ba3 {[%emt 0:00:07]} 49. Rb8+ $19 {[%emt 0:00:33]} Kc4 {[%emt 0:00:19]} 50. Ke2 {[%emt 0:00:31]} c1=Q {[%emt 0:00:11]} 51. Kf3 {[%emt 0:00:28]} Qc3+ {[%emt 0:00:34]} 52. Kg4 {[%emt 0:00:21]} Qd4+ {[%emt 0:00:04]} 53. f4 {[%emt 0:00:22]} Bd6 {[%emt 0:00:28]} 54. Rc8+ {[%emt 0:00:09]} Kd3 {[%emt 0:00:08]} 55. g3 {[%emt 0:00:15]} Qg7+ {[%emt 0:00:11]} 56. Kh4 {[%emt 0:00:27]} Be7+ {[%emt 0:00:08]} 57. Kh5 {[%emt 0:00:34]} Qf7+ {[%emt 0:00:02]} 0-1

[Event "CZE-ch Youth B14 2022"]
[Site "Luhacovice"]
[Date "2022.03.12"]
[Round "1.10"]
[White "Juracak, David"]
[Black "Siles, Jan"]
[Result "0-1"]
[ECO "D40"]
[WhiteElo "1717"]
[BlackElo "1548"]
[Annotator "NA"]
[PlyCount "68"]
[EventDate "2022.03.12"]
[EventType "swiss"]
[EventCountry "CZE"]
[SourceTitle "playchess.com"]
[Source "ChessBase"]
[SourceQuality "1"]
[TimeControl "40/5400+30:1800+30"]

1. d4 {[%emt 0:00:02]} d5 {[%emt 0:00:16]} 2. c4 {[%emt 0:00:08]} e6 {[%emt 0:00:29]} 3. Nf3 {[%emt 0:00:13]} Nf6 {[%emt 0:00:47]} 4. e3 {[%emt 0:00:07]} c5 {[%emt 0:00:45]} 5. Nc3 {[%emt 0:00:20]} Nc6 {[%emt 0:01:21]} 6. Bd3 {[%emt 0:02:57]} Bd6 {[%emt 0:06:25]} 7. O-O {[%emt 0:04:04]} O-O {[%emt 0:01:56]} 8. Re1 {[%emt 0:04:00]} Re8 {[%emt 0:03:56]} 9. b3 {[%emt 0:05:10]} b6 {[%emt 0:03:09]} 10. Bb2 {[%emt 0:01:49]} Bb7 {[%emt 0:00:45]} 11. Rc1 {[%emt 0:01:29]} Rc8 {[%emt 0:01:46]} 12. Bb1 {[%emt 0:15:59]} cxd4 {[%emt 0:07:32]} 13. Nxd4 {[%emt 0:09:06]} dxc4 {[%emt 0:03:26]} 14. Nxc6 {[%emt 0:00:11]} Bxc6 {[%emt 0:01:29]} 15. bxc4 {[%emt 0:00:56]} Qe7 {[%emt 0:10:36]} 16. Nb5 {[%emt 0:06:04]} Bb4 {[%emt 0:04:25]} 17. Re2 {[%emt 0:01:30]} Red8 {[%emt 0:02:14]} 18. Qa4 {[%emt 0:03:44]} a5 {[%emt 0:13:22]} 19. a3 {[%emt 0:08:11]} Bc5 {[%emt 0:00:23]} 20. Qb3 {[%emt 0:00:42]} Ne4 {[%emt 0:05:02]} 21. Nd4 {[%emt 0:07:47]} Bb7 {[%emt 0:06:32]} 22. Bd3 {[%emt 0:11:39]} Rd7 {[%emt 0:09:51]} 23. Qc2 {[%emt 0:00:49]} f5 {[%emt 0:02:03]} 24. Qb3 {[%emt 0:04:21]} Rcd8 {[%emt 0:01:27]} 25. Rd1 {[%emt 0:00:22]} Qe8 {[%emt 0:06:05]} 26. Bxe4 {[%emt 0:05:36]} Bxe4 {[%emt 0:00:54]} 27. Red2 {[%emt 0:02:35]} Qg6 {[%emt 0:02:23]} 28. f3 {[%emt 0:00:19]} Bb7 {[%emt 0:00:20]} 29. Qc2 {[%emt 0:01:08]} e5 {[%emt 0:01:50]} 30. Nxf5 {[%emt 0:02:48]} Rxd2 {[%emt 0:00:46]} 31. Rxd2 {[%emt 0:00:26]} Rxd2 {[%emt 0:00:12]} 32. Qxd2 {[%emt 0:00:23]} Qxf5 {[%emt 0:00:17]} 33. Qd8+ {[%emt 0:00:40]} Qf8 {[%emt 0:00:08]} 34. Qd3 {[%emt 0:00:16]} Qd6 {[%emt 0:00:30]} 0-1

[Event "CZE-ch Youth B14 2022"]
[Site "Luhacovice"]
[Date "2022.03.12"]
[Round "1.11"]
[White "Vysinsky, Otakar"]
[Black "Jasso, Matej"]
[Result "1/2-1/2"]
[ECO "D00"]
[WhiteElo "1534"]
[BlackElo "1726"]
[Annotator "NA RC"]
[PlyCount "95"]
[EventDate "2022.03.12"]
[EventType "swiss"]
[EventCountry "CZE"]
[SourceTitle "playchess.com"]
[Source "ChessBase"]
[SourceQuality "1"]
[TimeControl "40/5400+30:1800+30"]

1. d4 {[%emt 0:00:04]} d5 {[%emt 0:00:13]} 2. Bf4 {[%emt 0:00:11]} Nf6 {[%emt 0:00:36]} 3. e3 {[%emt 0:00:24]} c5 {[%emt 0:02:14]} 4. c3 {[%emt 0:01:18]} Nc6 {[%emt 0:00:19]} 5. Bd3 {[%emt 0:02:31]} Bg4 {[%emt 0:03:02]} 6. f3 {[%emt 0:07:21]} Bh5 {[%emt 0:01:19]} 7. Nd2 {[%emt 0:02:26]} e6 {[%emt 0:02:27]} 8. Ne2 {[%emt 0:07:05]} Be7 {[%emt 0:06:09]} 9. O-O {[%emt 0:09:30]} O-O {[%emt 0:03:25]} 10. Kh1 {[%emt 0:03:43]} Rc8 {[%emt 0:03:09]} 11. Rc1 {[%emt 0:05:15]} Bg6 {[%emt 0:19:59]} 12. Bxg6 {[%emt 0:07:07]} hxg6 {[%emt 0:00:24]} 13. Bg3 {[%emt 0:13:24]} Qb6 {[%emt 0:07:46]} 14. a4 {[%emt 0:07:21]} Na5 {[%emt 0:03:06]} 15. Rb1 {[%emt 0:06:04]} Nc4 {[%emt 0:05:23]} 16. Nxc4 {[%emt 0:01:13]} dxc4 {[%emt 0:00:09]} 17. e4 {[%emt 0:02:32]} Rfd8 {[%emt 0:06:36]} 18. Qc2 {[%emt 0:02:33]} Qc6 {[%emt 0:07:25]} 19. Rbd1 {[%emt 0:01:51]} Rd7 {[%emt 0:01:44]} 20. Rd2 {[%emt 0:00:54]} Rcd8 {[%emt 0:00:49]} 21. Rfd1 {[%emt 0:00:13]} Nh5 {[%emt 0:00:42]} 22. e5 {[%emt 0:11:05]} Nxg3+ {[%emt 0:00:47]} 23. hxg3 {[%emt 0:01:23]} a6 {[%emt 0:04:11]} 24. f4 {[%emt 0:02:54]} Qc7 {[%emt 0:06:09]} 25. Qe4 {[%emt 0:01:52]} Qa5 {[%emt 0:00:35]} 26. Qc2 {[%emt 0:01:02]} Rd5 {[%emt 0:01:28]} 27. Kg1 {[%emt 0:01:26]} cxd4 {[%emt 0:01:05]} 28. Nxd4 {[%emt 0:00:52]} Bc5 {[%emt 0:00:12]} 29. Kf1 {[%emt 0:00:38]} Bxd4 {[%emt 0:01:27]} 30. Rxd4 {[%emt 0:00:12]} Rxd4 {[%emt 0:00:29]} 31. Rxd4 {[%emt 0:00:22]} Rxd4 {[%emt 0:00:42]} 32. cxd4 {[%emt 0:00:01]} Qd5 {[%emt 0:00:14]} 33. Qc3 {[%emt 0:01:18]} b5 {[%emt 0:00:23]} 34. axb5 {[%emt 0:00:18]} axb5 {[%emt 0:00:06]} 35. Qd2 {[%emt 0:00:57]} Qe4 {[%emt 0:00:55]} 36. Qc3 {[%emt 0:00:35]} b4 {[%emt 0:01:38]} 37. Qxb4 {[%emt 0:00:34]} Qxd4 {[%emt 0:00:12]} 38. Qc3 {[%emt 0:00:27]} Qd5 {[%emt 0:01:33]} 39. Kf2 {[%emt 0:00:30]} Kh7 {[%emt 0:01:35]} 40. Kf1 {[%emt 0:00:30]} Kh6 {[%emt 0:03:39]} 41. Kf2 {[%emt 0:30:31]} g5 {[%emt 0:32:09]} 42. Qe3 {[%emt 0:00:00]} gxf4 {[%emt 0:00:00]} 43. gxf4 {[%emt 0:00:00]} Kh7 {[%emt 0:00:00]} 44. Qh3+ {[%emt 0:00:00]} Kg8 {[%emt 0:00:00]} 45. Qc3 {[%emt 0:00:00]} g6 {[%emt 0:00:00]} 46. g3 {[%emt 0:00:00]} Kg7 {[%emt 0:00:00]} 47. Qe3 {[%emt 0:00:00]} Qb5 {[%emt 0:00:00]} 48. Qd2 {[%emt 0:00:00]} 1/2-1/2

[Event "CZE-ch Youth B14 2022"]
[Site "Luhacovice"]
[Date "2022.03.13"]
[Round "2.1"]
[White "Soucek, Jan"]
[Black "Prazak, Daniel"]
[Result "0-1"]
[ECO "A45"]
[WhiteElo "1849"]
[BlackElo "2016"]
[Annotator "NA"]
[PlyCount "72"]
[EventDate "2022.03.12"]
[EventType "swiss"]
[EventCountry "CZE"]
[SourceTitle "playchess.com"]
[Source "ChessBase"]
[SourceQuality "1"]
[TimeControl "40/5400+30:1800+30"]

1. d4 {[%emt 0:00:20]} Nf6 {[%emt 0:00:14]} 2. Bg5 {[%emt 0:00:24]} e6 {[%emt 0:00:26]} 3. e4 {[%emt 0:00:13]} d5 {[%emt 0:03:45]} 4. Bxf6 Qxf6 {[%emt 0:00:44]} 5. e5 {[%emt 0:24:31]} Qd8 {[%emt 0:00:39]} 6. c3 {[%emt 0:04:03]} c5 {[%emt 0:00:28]} 7. Nf3 {[%emt 0:02:00]} Nc6 {[%emt 0:00:44]} 8. a3 {[%emt 0:00:38]} c4 $11 {[%emt 0:04:03]} 9. Nbd2 {[%emt 0:01:53]} Bd7 {[%emt 0:03:06]} 10. b4 {[%emt 0:16:10]} cxb3 {[%emt 0:00:48]} 11. Qxb3 {[%emt 0:00:22]} Na5 {[%emt 0:02:04]} 12. Qb2 {[%emt 0:00:30]} Rc8 {[%emt 0:01:01]} 13. Rc1 {[%emt 0:04:00]} Qb6 {[%emt 0:08:39]} 14. Qxb6 {[%emt 0:01:06]} axb6 {[%emt 0:00:08]} 15. Nb1 {[%emt 0:00:41]} b5 {[%emt 0:06:32]} 16. Rc2 {[%emt 0:15:41]} Nc4 {[%emt 0:02:49]} 17. Bxc4 {[%emt 0:04:20]} bxc4 {[%emt 0:00:15]} 18. Rb2 {[%emt 0:00:18]} b5 {[%emt 0:01:15]} 19. Ke2 {[%emt 0:00:18]} Ra8 {[%emt 0:01:12]} 20. Ne1 {[%emt 0:00:35]} Be7 {[%emt 0:00:51]} 21. Nc2 {[%emt 0:04:03]} O-O {[%emt 0:02:07]} 22. Nb4 {[%emt 0:00:56]} Ra4 {[%emt 0:01:29]} 23. f4 {[%emt 0:09:28]} f6 {[%emt 0:02:17]} 24. Rf1 {[%emt 0:02:52]} Be8 {[%emt 0:01:02]} 25. g3 {[%emt 0:05:29]} Bg6 {[%emt 0:01:40]} 26. exf6 {[%emt 0:01:56]} Bxb4 {[%emt 0:01:44]} 27. fxg7 {[%emt 0:00:22]} Bd3+ {[%emt 0:05:56]} 28. Kf2 {[%emt 0:00:34]} Rc8 {[%emt 0:00:30]} 29. cxb4 {[%emt 0:00:27]} c3 {[%emt 0:00:26]} 30. Rc1 {[%emt 0:00:47]} cxb2 {[%emt 0:00:28]} 31. Rxc8+ {[%emt 0:00:01]} Kxg7 {[%emt 0:00:02]} 32. Rc3 {[%emt 0:00:59]} Bxb1 {[%emt 0:00:19]} 33. Rb3 {[%emt 0:00:01]} Rxa3 {[%emt 0:00:08]} 34. Rxb2 {[%emt 0:00:16]} Be4 {[%emt 0:00:22]} 35. Ke2 {[%emt 0:01:11]} Rd3 {[%emt 0:00:13]} 36. Rd2 {[%emt 0:00:11]} Rb3 {[%emt 0:00:02]} 0-1